[Event "HUN-ch Rapid 2018"]
[Site "Ajka"]
[Date "2018.07.20"]
[Round "2"]
[White "Prohaszka, Peter"]
[Black "Egresi, Mate"]
[Result "0-1"]
[ECO "D00"]
[WhiteElo "2593"]
[BlackElo "2280"]
[Annotator "RC"]
[PlyCount "126"]
[EventDate "2018.07.20"]
[EventType "swiss"]
[EventCountry "HUN"]
[SourceTitle "playchess.com"]
[Source "ChessBase"]
[SourceQuality "1"]
[TimeControl "1200+5"]

1. d4 {[%emt 0:00:03]} d5 {[%emt 0:00:01]} 2. Bf4 {[%emt 0:00:05]} Nf6 {[%emt 0:00:04]} 3. e3 {[%emt 0:00:09]} e6 {[%emt 0:00:03]} 4. Nd2 {[%emt 0:00:06]} Bd6 {[%emt 0:00:03]} 5. Bg3 {[%emt 0:00:02]} Bxg3 {[%emt 0:00:31]} 6. hxg3 {[%emt 0:00:01]} Qe7 {[%emt 0:00:09]} 7. Ngf3 {[%emt 0:00:24]} b6 {[%emt 0:00:54]} 8. c3 {[%emt 0:00:10]} Bb7 {[%emt 0:00:04]} 9. Ne5 {[%emt 0:01:03]} O-O {[%emt 0:01:08]} 10. Bd3 {[%emt 0:00:20]} g6 {[%emt 0:01:59]} 11. Qf3 {[%emt 0:01:16]} Nbd7 {[%emt 0:00:23]} 12. Qf4 {[%emt 0:03:09]} Nxe5 {[%emt 0:01:20]} 13. dxe5 {[%emt 0:00:05]} Nd7 {[%emt 0:00:03]} 14. Nf3 {[%emt 0:00:35]} f6 {[%emt 0:01:22]} 15. exf6 {[%emt 0:00:37]} Nxf6 {[%emt 0:00:06]} 16. Qg5 {[%emt 0:03:07]} Rae8 {[%emt 0:02:45]} 17. O-O-O {[%emt 0:07:10]} e5 {[%emt 0:02:11]} 18. Bxg6 {[%emt 0:01:17]} hxg6 {[%emt 0:00:12]} 19. Rh6 {[%emt 0:00:34]} Nh7 {[%emt 0:00:57]} 20. Rxg6+ {[%emt 0:00:09]} Kh8 {[%emt 0:00:02]} 21. Qh6 {[%emt 0:00:19]} Rg8 {[%emt 0:01:35]} 22. Rh1 {[%emt 0:00:01]} Rxg6 23. Qxg6 {[%emt 0:00:01]} Rg8 {[%emt 0:00:36]} 24. Nxe5 {[%emt 0:00:02]} Rg7 {[%emt 0:00:54]} 25. Qf5 {[%emt 0:00:02]} Qe8 {[%emt 0:00:37]} 26. Rh6 {[%emt 0:00:16]} Kg8 {[%emt 0:00:45]} 27. Re6 {[%emt 0:00:30]} Qf8 {[%emt 0:00:01]} 28. Qh5 {[%emt 0:00:04]} Qxf2 {[%emt 0:01:03]} 29. a4 {[%emt 0:00:23]} Ba6 {[%emt 0:00:19]} 30. Re8+ {[%emt 0:00:06]} Nf8 {[%emt 0:00:02]} 31. Nd7 {[%emt 0:00:22]} Qf1+ {[%emt 0:00:44]} 32. Kd2 {[%emt 0:00:05]} Qxg2+ {[%emt 0:00:11]} 33. Kc1 {[%emt 0:00:04]} Qf1+ {[%emt 0:00:02]} 34. Kc2 {[%emt 0:00:05]} Rxd7 {[%emt 0:00:42]} 35. Qg5+ {[%emt 0:00:02]} Rg7 {[%emt 0:00:08]} 36. Qxd5+ {[%emt 0:00:01]} Qf7 {[%emt 0:00:06]} 37. Qe5 {[%emt 0:00:04]} Qg6+ {[%emt 0:00:22]} 38. Kb3 {[%emt 0:00:03]} Bd3 {[%emt 0:00:26]} 39. Rd8 {[%emt 0:00:07]} Bc2+ {[%emt 0:00:02]} 40. Ka3 {[%emt 0:00:03]} Qf7 {[%emt 0:00:05]} 41. Qd5 {[%emt 0:00:16]} Qxd5 {[%emt 0:00:08]} 42. Rxd5 {[%emt 0:00:02]} Rxg3 {[%emt 0:00:03]} 43. Re5 {[%emt 0:00:02]} Kf7 {[%emt 0:00:02]} 44. a5 {[%emt 0:00:01]} Nd7 {[%emt 0:00:09]} 45. Rd5 {[%emt 0:00:07]} Ke6 {[%emt 0:00:02]} 46. Rd2 {[%emt 0:00:04]} Bf5 {[%emt 0:00:03]} 47. Rh2 {[%emt 0:00:15]} Rxe3 {[%emt 0:00:07]} 48. Rh8 {[%emt 0:00:00]} Kd6 {[%emt 0:00:12]} 49. Ra8 {[%emt 0:00:02]} Re1 {[%emt 0:00:11]} 50. Kb4 {[%emt 0:00:11]} bxa5+ 51. Kxa5 {[%emt 0:00:04]} Ra1+ {[%emt 0:00:04]} 52. Kb4 {[%emt 0:00:00]} a5+ {[%emt 0:00:03]} 53. Kb3 {[%emt 0:00:06]} Be6+ {[%emt 0:00:04]} 54. Kc2 {[%emt 0:00:01]} Nb6 {[%emt 0:00:05]} 55. Rh8 {[%emt 0:00:08]} a4 {[%emt 0:00:04]} 56. Rh6 {[%emt 0:00:02]} Kd7 {[%emt 0:00:03]} 57. Kd3 {[%emt 0:00:04]} Rb1 {[%emt 0:00:10]} 58. Rh2 {[%emt 0:00:07]} Bb3 {[%emt 0:00:02]} 59. Kd4 {[%emt 0:00:02]} Kc6 {[%emt 0:00:07]} 60. Rh6+ {[%emt 0:00:02]} Kb7 {[%emt 0:00:01]} 61. Rh2 {[%emt 0:00:01]} Nc4 {[%emt 0:00:03]} 62. Kc5 {[%emt 0:00:00]} Rxb2 {[%emt 0:00:04]} 63. Rh1 {[%emt 0:00:06]} a3 {[%emt 0:00:08]} 0-1

[Event "HUN-ch Rapid 2018"]
[Site "Ajka"]
[Date "2018.07.20"]
[Round "2"]
[White "Ruck, Robert"]
[Black "Szalanczy, Emil"]
[Result "1-0"]
[ECO "A38"]
[WhiteElo "2570"]
[BlackElo "2214"]
[Annotator "ChessBase"]
[PlyCount "133"]
[EventDate "2018.07.20"]
[EventType "swiss"]
[EventCountry "HUN"]
[SourceTitle "playchess.com"]
[Source "ChessBase"]
[SourceQuality "1"]
[TimeControl "1200+5"]

1. Nf3 {[%emt 0:00:03]} Nf6 {[%emt 0:00:02]} 2. c4 {[%emt 0:00:03]} c5 {[%emt 0:00:01]} 3. Nc3 {[%emt 0:00:02]} Nc6 {[%emt 0:00:01]} 4. g3 {[%emt 0:00:01]} g6 {[%emt 0:00:02]} 5. Bg2 {[%emt 0:00:02]} Bg7 {[%emt 0:00:01]} 6. d4 {[%emt 0:00:02]} cxd4 {[%emt 0:00:04]} 7. Nxd4 {[%emt 0:00:02]} O-O {[%emt 0:00:02]} 8. O-O {[%emt 0:00:02]} Ng4 {[%emt 0:00:02]} 9. e3 {[%emt 0:00:02]} d6 {[%emt 0:00:01]} 10. Nde2 {[%emt 0:00:03]} Nge5 {[%emt 0:02:35]} 11. b3 {[%emt 0:00:42]} a5 {[%emt 0:00:49]} 12. Bd2 Nd3 {[%emt 0:01:10]} 13. Rb1 {[%emt 0:00:48]} Nc5 {[%emt 0:00:19]} 14. h3 Bf5 15. e4 {[%emt 0:00:34]} Bd7 {[%emt 0:00:35]} 16. Be3 {[%emt 0:00:06]} f5 {[%emt 0:02:15]} 17. exf5 {[%emt 0:07:03]} Bxf5 {[%emt 0:00:09]} 18. Rc1 {[%emt 0:00:02]} Kh8 {[%emt 0:01:05]} 19. Nd4 {[%emt 0:00:49]} Bd7 {[%emt 0:01:36]} 20. Qd2 {[%emt 0:00:38]} a4 {[%emt 0:00:19]} 21. Nxc6 {[%emt 0:00:30]} Bxc6 {[%emt 0:00:06]} 22. b4 {[%emt 0:00:11]} Bxg2 23. Kxg2 {[%emt 0:00:03]} Ne6 {[%emt 0:02:46]} 24. Nd5 {[%emt 0:00:26]} a3 {[%emt 0:00:19]} 25. Rfe1 {[%emt 0:00:06]} Rf7 {[%emt 0:01:09]} 26. Re2 {[%emt 0:01:31]} Qd7 {[%emt 0:01:02]} 27. Rce1 {[%emt 0:00:14]} Nc7 {[%emt 0:00:32]} 28. Bg5 {[%emt 0:04:16]} e5 {[%emt 0:00:33]} 29. Be3 {[%emt 0:00:33]} Raf8 {[%emt 0:00:35]} 30. Rd1 {[%emt 0:00:06]} Ne6 {[%emt 0:00:13]} 31. Nb6 {[%emt 0:00:13]} Qc6+ {[%emt 0:00:02]} 32. Qd5 {[%emt 0:00:02]} Nd4 {[%emt 0:00:07]} 33. Bxd4 {[%emt 0:00:38]} exd4 {[%emt 0:00:02]} 34. Qxc6 {[%emt 0:00:09]} bxc6 {[%emt 0:00:01]} 35. Rd3 {[%emt 0:00:01]} Rb7 {[%emt 0:01:13]} 36. c5 {[%emt 0:00:05]} dxc5 {[%emt 0:00:04]} 37. bxc5 {[%emt 0:00:00]} Rf5 {[%emt 0:00:25]} 38. Re8+ {[%emt 0:00:13]} Rf8 {[%emt 0:00:01]} 39. Re6 {[%emt 0:00:12]} Rc7 {[%emt 0:00:18]} 40. Rxa3 {[%emt 0:00:44]} Rd8 {[%emt 0:00:02]} 41. Rd6 {[%emt 0:00:14]} Re8 {[%emt 0:00:17]} 42. Ra8 {[%emt 0:00:11]} Rxa8 {[%emt 0:00:16]} 43. Nxa8 {[%emt 0:00:01]} Rf7 {[%emt 0:00:18]} 44. Nb6 {[%emt 0:00:49]} Bf8 {[%emt 0:00:35]} 45. Rd7 {[%emt 0:00:25]} Rf5 {[%emt 0:00:17]} 46. Na4 {[%emt 0:00:41]} Bxc5 {[%emt 0:00:25]} 47. g4 {[%emt 0:00:02]} Re5 {[%emt 0:00:09]} 48. Nxc5 {[%emt 0:00:05]} Rxc5 {[%emt 0:00:01]} 49. Rxd4 {[%emt 0:00:02]} Rc2 {[%emt 0:00:06]} 50. a4 {[%emt 0:00:02]} c5 {[%emt 0:00:14]} 51. Rd7 {[%emt 0:00:01]} c4 {[%emt 0:00:13]} 52. Rc7 {[%emt 0:00:09]} c3 {[%emt 0:00:13]} 53. Kg3 {[%emt 0:00:02]} Rc1 {[%emt 0:00:06]} 54. Kf4 {[%emt 0:00:12]} c2 {[%emt 0:00:23]} 55. Kg5 {[%emt 0:00:02]} Kg8 {[%emt 0:00:16]} 56. Kf6 {[%emt 0:00:03]} h5 {[%emt 0:00:03]} 57. Kxg6 {[%emt 0:00:01]} Kf8 {[%emt 0:00:01]} 58. Kxh5 {[%emt 0:00:02]} Ke8 {[%emt 0:00:01]} 59. g5 {[%emt 0:00:02]} Kd8 {[%emt 0:00:01]} 60. Rc4 {[%emt 0:00:02]} Ke7 {[%emt 0:00:02]} 61. Kg6 {[%emt 0:00:02]} Kd6 {[%emt 0:00:01]} 62. h4 {[%emt 0:00:03]} Kd5 {[%emt 0:00:00]} 63. Rc8 {[%emt 0:00:01]} Kd4 {[%emt 0:00:01]} 64. h5 {[%emt 0:00:00]} Kd3 {[%emt 0:00:01]} 65. h6 {[%emt 0:00:01]} Rh1 {[%emt 0:00:06]} 66. h7 {[%emt 0:00:02]} Kd2 {[%emt 0:00:12]} 67. Kg7 {[%emt 0:00:02]} 1-0

[Event "HUN-ch Rapid 2018"]
[Site "Ajka"]
[Date "2018.07.20"]
[Round "2"]
[White "Jakab, Attila"]
[Black "Margl, Roland"]
[Result "1/2-1/2"]
[ECO "D41"]
[WhiteElo "2363"]
[BlackElo "2047"]
[Annotator "NA"]
[PlyCount "109"]
[EventDate "2018.07.20"]
[EventType "swiss"]
[EventCountry "HUN"]
[SourceTitle "playchess.com"]
[Source "ChessBase"]
[SourceQuality "1"]
[TimeControl "1200+5"]

1. d4 {[%emt 0:00:04]} d5 {[%emt 0:00:01]} 2. c4 {[%emt 0:00:02]} e6 {[%emt 0:00:01]} 3. Nc3 {[%emt 0:00:03]} Nf6 {[%emt 0:00:01]} 4. cxd5 {[%emt 0:00:02]} Nxd5 {[%emt 0:00:02]} 5. Nf3 {[%emt 0:00:08]} c5 {[%emt 0:00:01]} 6. e3 {[%emt 0:00:09]} cxd4 {[%emt 0:00:03]} 7. exd4 {[%emt 0:00:02]} Nxc3 {[%emt 0:00:02]} 8. bxc3 {[%emt 0:00:01]} Qc7 {[%emt 0:00:01]} 9. Bd2 {[%emt 0:00:10]} Nd7 {[%emt 0:00:02]} 10. Bd3 {[%emt 0:00:04]} Bd6 {[%emt 0:00:02]} 11. O-O {[%emt 0:00:03]} b6 {[%emt 0:00:12]} 12. Qe2 {[%emt 0:00:12]} Bb7 {[%emt 0:00:03]} 13. h3 {[%emt 0:04:01]} O-O {[%emt 0:00:06]} 14. Ng5 {[%emt 0:04:04]} Nf6 {[%emt 0:00:17]} 15. Rae1 {[%emt 0:00:48]} Rac8 {[%emt 0:04:33]} 16. f4 {[%emt 0:00:29]} h6 {[%emt 0:00:41]} 17. Ne4 {[%emt 0:00:07]} Nxe4 {[%emt 0:00:11]} 18. Bxe4 {[%emt 0:00:02]} Rfe8 {[%emt 0:03:07]} 19. Bc2 {[%emt 0:00:41]} Bd5 {[%emt 0:00:39]} 20. Qh5 {[%emt 0:02:11]} Qc6 {[%emt 0:06:40]} 21. f5 {[%emt 0:01:46]} exf5 {[%emt 0:00:47]} 22. Qxf5 {[%emt 0:00:02]} g6 {[%emt 0:00:06]} 23. Qf2 {[%emt 0:00:02]} Bf8 {[%emt 0:01:25]} 24. Rxe8 {[%emt 0:01:01]} Rxe8 {[%emt 0:00:01]} 25. Bb3 {[%emt 0:00:02]} b5 {[%emt 0:00:39]} 26. Qh4 {[%emt 0:00:17]} Re2 {[%emt 0:01:11]} 27. Rf2 {[%emt 0:00:02]} Rxf2 {[%emt 0:00:12]} 28. Qxf2 {[%emt 0:00:05]} Bxb3 {[%emt 0:00:02]} 29. axb3 {[%emt 0:00:01]} Qd5 {[%emt 0:00:02]} 30. b4 {[%emt 0:00:23]} h5 {[%emt 0:00:12]} 31. Bf4 {[%emt 0:00:03]} Bg7 {[%emt 0:00:32]} 32. Qe3 {[%emt 0:00:04]} Qc6 {[%emt 0:00:16]} 33. Kf2 {[%emt 0:00:32]} a6 {[%emt 0:00:02]} 34. Qg3 {[%emt 0:01:33]} Qe4 {[%emt 0:00:06]} 35. Kg1 {[%emt 0:00:17]} Qd5 {[%emt 0:00:06]} 36. Kh2 {[%emt 0:00:02]} Qe4 {[%emt 0:00:02]} 37. Qf2 {[%emt 0:00:09]} Kh7 {[%emt 0:00:07]} 38. Kg3 {[%emt 0:00:07]} Kg8 {[%emt 0:00:01]} 39. Qe3 {[%emt 0:00:30]} Qxe3+ {[%emt 0:00:02]} 40. Bxe3 {[%emt 0:00:01]} Kf8 {[%emt 0:00:02]} 41. Kf3 {[%emt 0:00:13]} Ke7 {[%emt 0:00:02]} 42. Ke4 {[%emt 0:00:03]} Ke6 {[%emt 0:00:30]} 43. d5+ {[%emt 0:00:22]} Kd6 {[%emt 0:00:04]} 44. Bf4+ {[%emt 0:00:20]} Kd7 {[%emt 0:00:02]} 45. Be5 {[%emt 0:00:14]} Bh6 {[%emt 0:00:02]} 46. Kd4 {[%emt 0:00:06]} Bf8 {[%emt 0:00:02]} 47. g4 {[%emt 0:00:55]} hxg4 {[%emt 0:00:01]} 48. hxg4 {[%emt 0:00:01]} Be7 {[%emt 0:00:10]} 49. c4 {[%emt 0:00:39]} bxc4 {[%emt 0:00:04]} 50. Kxc4 {[%emt 0:00:02]} f5 {[%emt 0:00:01]} 51. gxf5 {[%emt 0:00:02]} gxf5 {[%emt 0:00:01]} 52. b5 {[%emt 0:00:05]} axb5+ {[%emt 0:00:27]} 53. Kxb5 {[%emt 0:00:02]} Bd6 {[%emt 0:00:03]} 54. Bd4 {[%emt 0:00:02]} Bg3 {[%emt 0:00:04]} 55. Kc5 {[%emt 0:00:23]} 1/2-1/2

[Event "HUN-ch Rapid 2018"]
[Site "Ajka"]
[Date "2018.07.20"]
[Round "2"]
[White "Teglas, Balazs"]
[Black "Medvegy, Zoltan"]
[Result "0-1"]
[ECO "B29"]
[WhiteElo "2201"]
[BlackElo "2542"]
[Annotator "ChessBase"]
[PlyCount "90"]
[EventDate "2018.07.20"]
[EventType "swiss"]
[EventCountry "HUN"]
[SourceTitle "playchess.com"]
[Source "ChessBase"]
[SourceQuality "1"]
[TimeControl "1200+5"]

1. e4 {[%emt 0:00:07]} c5 {[%emt 0:00:14]} 2. Nf3 {[%emt 0:00:07]} Nf6 {[%emt 0:00:02]} 3. e5 {[%emt 0:00:07]} Nd5 {[%emt 0:00:01]} 4. Nc3 {[%emt 0:00:03]} Nxc3 {[%emt 0:00:02]} 5. dxc3 {[%emt 0:00:10]} Nc6 {[%emt 0:00:02]} 6. Bd3 {[%emt 0:00:21]} Qc7 {[%emt 0:00:32]} 7. Qe2 {[%emt 0:00:05]} h6 {[%emt 0:00:14]} 8. O-O {[%emt 0:00:15]} e6 {[%emt 0:00:24]} 9. Bf4 {[%emt 0:00:49]} b6 {[%emt 0:02:27]} 10. Rad1 {[%emt 0:00:28]} Bb7 {[%emt 0:00:06]} 11. Nd2 {[%emt 0:04:54]} d5 {[%emt 0:04:45]} 12. exd6 {[%emt 0:00:26]} Bxd6 {[%emt 0:00:02]} 13. Bxd6 {[%emt 0:00:03]} Qxd6 {[%emt 0:00:01]} 14. Nc4 {[%emt 0:00:13]} Qc7 {[%emt 0:00:36]} 15. Be4 {[%emt 0:00:07]} Rd8 {[%emt 0:01:37]} 16. Rxd8+ {[%emt 0:10:32]} Nxd8 {[%emt 0:00:01]} 17. Rd1 {[%emt 0:00:24]} O-O {[%emt 0:00:22]} 18. Ne5 {[%emt 0:00:18]} Bxe4 {[%emt 0:05:36]} 19. Qxe4 {[%emt 0:00:06]} Nb7 {[%emt 0:00:01]} 20. f4 {[%emt 0:01:01]} Rd8 {[%emt 0:00:36]} 21. Rd3 {[%emt 0:00:15]} Rxd3 {[%emt 0:00:38]} 22. cxd3 {[%emt 0:00:07]} Nd6 {[%emt 0:00:04]} 23. Qc6 {[%emt 0:00:02]} Qxc6 {[%emt 0:00:13]} 24. Nxc6 {[%emt 0:00:01]} Nc8 {[%emt 0:00:01]} 25. Kf2 {[%emt 0:00:07]} Kf8 {[%emt 0:00:01]} 26. Ke3 {[%emt 0:00:06]} Ke8 {[%emt 0:00:05]} 27. g3 {[%emt 0:00:11]} f6 {[%emt 0:00:12]} 28. b4 {[%emt 0:00:31]} cxb4 {[%emt 0:00:09]} 29. cxb4 {[%emt 0:00:10]} Kd7 {[%emt 0:00:07]} 30. Nd4 {[%emt 0:00:00]} Ne7 {[%emt 0:00:09]} 31. a3 {[%emt 0:00:04]} a6 {[%emt 0:00:14]} 32. Ne2 {[%emt 0:00:08]} Kc6 {[%emt 0:00:11]} 33. Kd4 {[%emt 0:00:07]} Nf5+ {[%emt 0:00:02]} 34. Kc3 {[%emt 0:00:03]} Kd5 {[%emt 0:00:27]} 35. Kd2 {[%emt 0:00:05]} Nd4 {[%emt 0:00:16]} 36. Nc3+ {[%emt 0:00:01]} Kc6 {[%emt 0:00:02]} 37. h3 {[%emt 0:00:22]} Nb5 {[%emt 0:00:23]} 38. Nxb5 {[%emt 0:00:03]} axb5 {[%emt 0:00:27]} 39. g4 {[%emt 0:00:06]} Kd5 {[%emt 0:00:14]} 40. Ke3 {[%emt 0:00:00]} g5 {[%emt 0:00:14]} 41. fxg5 hxg5 42. Ke2 {[%emt 0:00:18]} Kd4 43. Kd2 f5 {[%emt 0:00:19]} 44. gxf5 {[%emt 0:00:01]} exf5 {[%emt 0:00:01]} 45. Ke2 {[%emt 0:00:01]} f4 {[%emt 0:00:02]} 0-1

[Event "HUN-ch Rapid 2018"]
[Site "Ajka"]
[Date "2018.07.20"]
[Round "2"]
[White "Marton, Jozsef"]
[Black "Nemeth, Miklos"]
[Result "1/2-1/2"]
[ECO "A46"]
[WhiteElo "2088"]
[BlackElo "2469"]
[Annotator "RC"]
[PlyCount "63"]
[EventDate "2018.07.20"]
[EventType "swiss"]
[EventCountry "HUN"]
[SourceTitle "playchess.com"]
[Source "ChessBase"]
[SourceQuality "1"]
[TimeControl "1200+5"]

1. d4 {[%emt 0:00:02]} Nf6 {[%emt 0:00:10]} 2. Nf3 {[%emt 0:00:02]} e6 {[%emt 0:00:03]} 3. Bf4 {[%emt 0:00:03]} b6 {[%emt 0:00:08]} 4. e3 {[%emt 0:00:03]} Bb7 {[%emt 0:00:02]} 5. h3 {[%emt 0:00:08]} h6 {[%emt 0:00:21]} 6. Be2 {[%emt 0:00:04]} g5 {[%emt 0:00:34]} 7. Bh2 {[%emt 0:00:59]} g4 {[%emt 0:00:04]} 8. hxg4 {[%emt 0:00:08]} Nxg4 {[%emt 0:00:02]} 9. Bf4 {[%emt 0:00:28]} d6 {[%emt 0:01:20]} 10. Nc3 {[%emt 0:01:41]} Nd7 {[%emt 0:00:55]} 11. Qd2 {[%emt 0:00:19]} Qe7 {[%emt 0:02:05]} 12. Nh4 {[%emt 0:00:29]} Ngf6 {[%emt 0:01:35]} 13. f3 {[%emt 0:00:58]} O-O-O {[%emt 0:01:15]} 14. a4 {[%emt 0:00:04]} e5 {[%emt 0:02:06]} 15. Bg3 {[%emt 0:00:44]} Rg8 {[%emt 0:01:40]} 16. Bf2 {[%emt 0:02:08]} a5 {[%emt 0:01:39]} 17. Nf5 {[%emt 0:03:35]} Qe6 {[%emt 0:00:11]} 18. e4 {[%emt 0:00:06]} d5 {[%emt 0:00:24]} 19. O-O-O {[%emt 0:02:39]} dxe4 {[%emt 0:00:14]} 20. Nxh6 {[%emt 0:00:32]} Rxg2 {[%emt 0:01:29]} 21. d5 {[%emt 0:00:40]} Nxd5 {[%emt 0:00:46]} 22. Nxd5 {[%emt 0:00:13]} Bxd5 {[%emt 0:00:07]} 23. Qxd5 {[%emt 0:00:53]} Bxh6+ {[%emt 0:00:53]} 24. Rxh6 {[%emt 0:00:21]} Qxh6+ {[%emt 0:00:43]} 25. Kb1 {[%emt 0:00:14]} c6 {[%emt 0:00:02]} 26. Qc4 {[%emt 0:02:34]} Rxf2 {[%emt 0:01:51]} 27. Qa6+ {[%emt 0:00:02]} Kb8 {[%emt 0:00:01]} 28. Rxd7 {[%emt 0:00:18]} Rxd7 {[%emt 0:00:01]} 29. Qxb6+ {[%emt 0:00:02]} Ka8 {[%emt 0:00:32]} 30. Qa6+ {[%emt 0:00:03]} Kb8 31. Qb6+ Ka8 {[%emt 0:00:03]} 32. Qa6+ {[%emt 0:00:02]} 1/2-1/2

[Event "HUN-ch Rapid 2018"]
[Site "Ajka"]
[Date "2018.07.20"]
[Round "2"]
[White "Czupor, Attila"]
[Black "Galyas, Miklos"]
[Result "1/2-1/2"]
[ECO "B08"]
[WhiteElo "2045"]
[BlackElo "2382"]
[Annotator "NA"]
[PlyCount "134"]
[EventDate "2018.07.20"]
[EventType "swiss"]
[EventCountry "HUN"]
[SourceTitle "playchess.com"]
[Source "ChessBase"]
[SourceQuality "1"]
[TimeControl "1200+5"]

1. e4 {[%emt 0:00:03]} g6 {[%emt 0:00:01]} 2. d4 {[%emt 0:00:02]} Bg7 {[%emt 0:00:01]} 3. Nf3 {[%emt 0:00:16]} d6 {[%emt 0:00:03]} 4. Be2 {[%emt 0:00:07]} Nf6 {[%emt 0:00:01]} 5. Nc3 {[%emt 0:00:07]} O-O {[%emt 0:00:02]} 6. h3 {[%emt 0:00:04]} a6 {[%emt 0:00:10]} 7. Be3 {[%emt 0:00:05]} b5 {[%emt 0:00:14]} 8. a3 {[%emt 0:01:43]} Bb7 {[%emt 0:00:02]} 9. Nd2 {[%emt 0:00:43]} Nbd7 {[%emt 0:00:23]} 10. Bf3 {[%emt 0:00:16]} e5 {[%emt 0:01:37]} 11. d5 {[%emt 0:01:36]} c5 {[%emt 0:00:09]} 12. g4 {[%emt 0:00:48]} c4 {[%emt 0:02:05]} 13. a4 {[%emt 0:01:32]} b4 {[%emt 0:01:05]} 14. Na2 {[%emt 0:00:16]} c3 {[%emt 0:00:28]} 15. bxc3 {[%emt 0:00:13]} bxc3 {[%emt 0:00:02]} 16. Nxc3 {[%emt 0:00:07]} Rc8 {[%emt 0:00:10]} 17. Ne2 {[%emt 0:02:27]} Nc5 {[%emt 0:00:08]} 18. O-O {[%emt 0:01:00]} Rc7 {[%emt 0:00:46]} 19. Ng3 {[%emt 0:01:32]} Bc8 {[%emt 0:00:41]} 20. Nb3 {[%emt 0:00:25]} Nfd7 {[%emt 0:00:40]} 21. Qd2 {[%emt 0:01:00]} Nxb3 {[%emt 0:01:20]} 22. cxb3 {[%emt 0:00:04]} Nc5 {[%emt 0:00:01]} 23. Ra3 {[%emt 0:01:57]} f5 {[%emt 0:00:33]} 24. exf5 {[%emt 0:00:14]} gxf5 {[%emt 0:00:05]} 25. gxf5 {[%emt 0:02:34]} Rxf5 {[%emt 0:05:16]} 26. Nxf5 {[%emt 0:00:21]} Bxf5 {[%emt 0:00:02]} 27. b4 {[%emt 0:01:36]} Nd7 {[%emt 0:03:18]} 28. Bg2 {[%emt 0:00:15]} Rc2 {[%emt 0:00:06]} 29. Qd1 {[%emt 0:00:07]} Nf6 {[%emt 0:00:01]} 30. Bg5 {[%emt 0:00:29]} Qc8 {[%emt 0:00:19]} 31. Rg3 {[%emt 0:00:09]} Kh8 {[%emt 0:00:01]} 32. b5 {[%emt 0:00:11]} axb5 {[%emt 0:00:05]} 33. axb5 {[%emt 0:00:01]} Ne4 {[%emt 0:00:51]} 34. Bxe4 {[%emt 0:00:04]} Bxe4 {[%emt 0:00:01]} 35. Qg4 {[%emt 0:00:14]} Bf5 {[%emt 0:00:21]} 36. Qh4 {[%emt 0:00:03]} Rc4 {[%emt 0:00:05]} 37. Qh5 {[%emt 0:00:10]} Bg6 {[%emt 0:00:09]} 38. Qe2 {[%emt 0:00:07]} Rc2 {[%emt 0:00:07]} 39. Qe3 {[%emt 0:00:05]} e4 {[%emt 0:00:19]} 40. Qb6 {[%emt 0:00:08]} Be5 {[%emt 0:00:05]} 41. Re3 {[%emt 0:00:03]} Qf5 {[%emt 0:00:05]} 42. Qd8+ {[%emt 0:00:07]} Kg7 {[%emt 0:00:05]} 43. Qe7+ {[%emt 0:00:02]} Bf7 {[%emt 0:00:14]} 44. Bh4 {[%emt 0:00:06]} Rc8 {[%emt 0:00:10]} 45. Qg5+ {[%emt 0:00:03]} Qxg5+ {[%emt 0:00:02]} 46. Bxg5 {[%emt 0:00:01]} Bxd5 {[%emt 0:00:02]} 47. Rb1 {[%emt 0:00:07]} Kg6 {[%emt 0:00:36]} 48. Bh4 {[%emt 0:00:05]} Kf5 {[%emt 0:00:09]} 49. Bg3 {[%emt 0:00:07]} Bd4 {[%emt 0:00:02]} 50. Ra3 {[%emt 0:00:02]} Bc5 {[%emt 0:00:05]} 51. Ra4 {[%emt 0:00:08]} e3 {[%emt 0:00:04]} 52. fxe3 {[%emt 0:00:09]} Bxe3+ {[%emt 0:00:01]} 53. Kf1 {[%emt 0:00:06]} Rc2 {[%emt 0:00:28]} 54. Rab4 {[%emt 0:00:06]} Bg2+ {[%emt 0:00:16]} 55. Ke1 {[%emt 0:00:01]} Bf3 {[%emt 0:00:02]} 56. R4b2 {[%emt 0:00:05]} Rc8 {[%emt 0:00:11]} 57. Bf2 {[%emt 0:00:03]} Bf4 {[%emt 0:00:09]} 58. b6 {[%emt 0:00:05]} Re8+ {[%emt 0:00:02]} 59. Kf1 {[%emt 0:00:01]} Bb7 {[%emt 0:00:02]} 60. Rb5+ {[%emt 0:00:06]} Be5 {[%emt 0:00:03]} 61. Ra5 {[%emt 0:00:05]} Re7 {[%emt 0:00:13]} 62. Bg3 {[%emt 0:00:04]} Rg7 {[%emt 0:00:02]} 63. Bxe5 {[%emt 0:00:02]} dxe5 {[%emt 0:00:01]} 64. Ra2 {[%emt 0:00:11]} e4 {[%emt 0:00:03]} 65. Ra3 {[%emt 0:00:08]} Kf4 {[%emt 0:00:03]} 66. Rb4 {[%emt 0:00:05]} Rd7 {[%emt 0:00:04]} 67. Ke2 {[%emt 0:00:06]} Ke5 1/2-1/2

[Event "HUN-ch Rapid 2018"]
[Site "Ajka"]
[Date "2018.07.20"]
[Round "2"]
[White "Koronghy, Gyula"]
[Black "Dankhazi, Andras"]
[Result "0-1"]
[ECO "C47"]
[WhiteElo "2020"]
[BlackElo "2361"]
[Annotator "NA"]
[PlyCount "72"]
[EventDate "2018.07.20"]
[EventType "swiss"]
[EventCountry "HUN"]
[SourceTitle "playchess.com"]
[Source "ChessBase"]
[SourceQuality "1"]
[TimeControl "1200+5"]

1. e4 {[%emt 0:00:03]} e5 {[%emt 0:00:00]} 2. Nf3 {[%emt 0:00:03]} Nc6 {[%emt 0:00:02]} 3. Nc3 {[%emt 0:00:01]} Nf6 {[%emt 0:00:04]} 4. d4 {[%emt 0:00:03]} exd4 {[%emt 0:00:02]} 5. Nd5 {[%emt 0:00:00]} Nb4 {[%emt 0:00:09]} 6. Bc4 {[%emt 0:00:39]} Nbxd5 {[%emt 0:01:51]} 7. exd5 {[%emt 0:00:26]} Bb4+ {[%emt 0:02:00]} 8. Bd2 {[%emt 0:00:28]} Qe7+ {[%emt 0:00:01]} 9. Qe2 {[%emt 0:00:16]} Bxd2+ {[%emt 0:00:36]} 10. Kxd2 {[%emt 0:00:20]} Qxe2+ {[%emt 0:00:04]} 11. Kxe2 {[%emt 0:00:22]} c5 {[%emt 0:02:45]} 12. dxc6 $1 {[%emt 0:01:51]} bxc6 $11 {[%emt 0:00:02]} 13. Nxd4 {[%emt 0:00:17]} d5 {[%emt 0:01:33]} 14. Bd3 {[%emt 0:04:29]} c5 {[%emt 0:00:51]} 15. Bb5+ {[%emt 0:00:20]} Bd7 {[%emt 0:00:08]} 16. Bxd7+ {[%emt 0:00:21]} Kxd7 {[%emt 0:00:06]} 17. Nb3 {[%emt 0:01:38]} Rhe8+ {[%emt 0:00:19]} 18. Kf3 {[%emt 0:01:10]} Kc6 {[%emt 0:00:23]} 19. Rhe1 {[%emt 0:00:41]} Nd7 {[%emt 0:01:29]} 20. g3 {[%emt 0:00:18]} Ne5+ {[%emt 0:00:08]} 21. Kg2 {[%emt 0:00:09]} Nc4 {[%emt 0:00:02]} 22. Rab1 {[%emt 0:02:21]} Rxe1 {[%emt 0:01:01]} 23. Rxe1 {[%emt 0:00:03]} Kd6 {[%emt 0:00:01]} 24. Rb1 {[%emt 0:02:10]} Rb8 {[%emt 0:00:02]} 25. f4 {[%emt 0:00:37]} a5 {[%emt 0:00:21]} 26. Kf3 {[%emt 0:00:12]} Rxb3+ {[%emt 0:01:13]} 27. axb3 {[%emt 0:00:29]} Nd2+ {[%emt 0:00:01]} 28. Ke2 {[%emt 0:00:01]} Nxb1 {[%emt 0:00:02]} 29. Kd1 {[%emt 0:00:00]} d4 {[%emt 0:02:31]} 30. Kc1 {[%emt 0:00:12]} Nc3 {[%emt 0:00:02]} 31. bxc3 {[%emt 0:00:02]} dxc3 {[%emt 0:00:01]} 32. Kd1 {[%emt 0:00:02]} c4 {[%emt 0:00:42]} 33. Ke2 {[%emt 0:00:17]} Kc5 {[%emt 0:00:04]} 34. Ke3 {[%emt 0:00:13]} cxb3 {[%emt 0:00:04]} 35. cxb3 {[%emt 0:00:01]} Kb4 {[%emt 0:00:01]} 36. Kd3 {[%emt 0:01:13]} Kxb3 {[%emt 0:00:02]} 0-1